fUST/lending_fUST_20250407
["ID","MTS","AMOUNT","RATE_DAILY","PERIOD"]
[357299084,1743999048200,-557.22,0.00038356,7]
[357299085,1743999048211,-20494.34,0.00038356,7]
[357299086,1743999048222,-500.0,0.00038356,7]
[357299087,1743999048234,-606.51,0.00038356,7]
[357299088,1743999048245,-500.0,0.00038356,7]
[357299089,1743999048256,-190.30793791,0.00038356,7]
[357299090,1743999048267,-548.12279,0.00038356,7]
[357299091,1743999048278,-504.2523279,0.00038356,7]
[357299092,1743999048289,-500.0,0.00038356,7]
[357299093,1743999048299,-500.0,0.00038356,7]
[357299094,1743999048310,-500.0,0.00038356,7]
[357299095,1743999048321,-801.33,0.00038356,7]
[357299096,1743999048331,-500.0,0.00038356,7]
[357299097,1743999048342,-501.97001727,0.00038356,7]
[357299098,1743999048356,-500.0,0.00038356,7]
[357299099,1743999048367,-500.0,0.00038356,7]
[357299100,1743999048378,-481.5387907,0.00038356,7]
[357299101,1743999048388,-500.0,0.00038356,7]
[357299102,1743999048399,-446.60289166,0.00038356,7]
[357299103,1743999048411,-500.0,0.00038356,7]
[357299104,1743999048425,-528.76,0.00038356,7]
[357299105,1743999048437,-500.0,0.00038356,7]
[357299106,1743999048448,-500.0,0.00038356,7]
[357299107,1743999048460,-500.0,0.00038356,7]
[357299108,1743999048472,-500.0,0.00038356,7]
[357299109,1743999048695,-508.96740043,0.00038356,7]
[357299110,1743999048735,-505.34826254,0.00038356,7]
[357299111,1743999048747,-1791.73,0.00038356,7]
[357299112,1743999048757,-513.90822862,0.00038356,7]
[357299113,1743999048768,-500.0,0.00038356,7]
[357299114,1743999048778,-500.0,0.00038356,7]
[357299115,1743999048788,-500.0,0.00038356,7]
[357299116,1743999048798,-500.0,0.00038356,7]
[357299117,1743999048808,-500.0,0.00038356,7]
[357299118,1743999048818,-500.0,0.00038356,7]
[357299119,1743999048829,-2408.79,0.00038356,7]
[357299120,1743999048839,-500.0,0.00038356,7]
[357299121,1743999048849,-500.0,0.00038356,7]
[357299122,1743999048859,-500.0,0.00038356,7]
[357299123,1743999048870,-500.0,0.00038356,7]
[357299124,1743999048880,-976.13,0.00038356,7]
[357299125,1743999048890,-2860.97,0.00038356,2]
[357299126,1743999048900,-500.0,0.00038356,7]
[357299127,1743999048915,-535.56164227,0.00038356,7]
[357299128,1743999048925,-500.0,0.00038356,7]
[357299129,1743999048936,-500.0,0.00038356,7]
[357299130,1743999048946,-500.0,0.00038356,7]
[357299131,1743999048958,-554.55,0.00038356,7]
[357299132,1743999048968,-202.04910303,0.00038356,7]
[357299133,1743999048978,-500.0,0.00038356,7]
[357299134,1743999048988,-6441.92,0.00038356,7]
[357299135,1743999048999,-500.0,0.00038356,7]
[357299136,1743999049015,-500.0,0.00038356,7]
[357299137,1743999049026,-500.0,0.00038356,7]
[357299138,1743999049036,-562.22,0.00038356,7]
[357299139,1743999049046,-500.0,0.00038356,7]
[357299140,1743999049057,-500.0,0.00038356,7]
[357299141,1743999049067,-1285.05,0.00038356,7]
[357299142,1743999049077,-6825.27,0.00038356,7]
[357299143,1743999049087,-500.0,0.00038356,7]
[357299144,1743999049098,-500.0,0.00038356,7]
[357299145,1743999049109,-500.0,0.00038356,7]
[357299146,1743999049119,-533.02,0.00038356,7]
[357299147,1743999049128,-500.0,0.00038356,7]
[357299148,1743999049138,-7038.46,0.00038356,7]
[357299149,1743999049148,-850.81,0.00038356,7]
[357299150,1743999049158,-500.0,0.00038356,7]
[357299151,1743999049173,-749.51,0.00038356,7]
[357299152,1743999049184,-500.0,0.00038356,7]
[357299153,1743999049194,-9271.27,0.00038356,7]
[357299154,1743999049205,-576.98,0.00038356,7]
[357299155,1743999049215,-576.98,0.00038356,7]
[357299156,1743999049225,-576.98,0.00038356,7]
[357299157,1743999049236,-576.98,0.00038356,7]
[357299158,1743999049246,-576.98,0.00038356,7]
[357299159,1743999049256,-576.98,0.00038356,7]
[357299160,1743999049266,-500.0,0.00038356,7]
[357299161,1743999049276,-576.98,0.00038356,7]
[357299162,1743999049286,-576.98,0.00038356,7]
[357299163,1743999049296,-500.0,0.00038356,7]
[357299164,1743999049306,-543.20934554,0.00038356,7]
[357299165,1743999049316,-576.98,0.00038356,7]
[357299166,1743999049327,-576.98,0.00038356,7]
[357299167,1743999049337,-815.55,0.00038356,7]
[357299168,1743999049347,-576.98,0.00038356,7]
[357299169,1743999049357,-576.98,0.00038356,7]
[357299170,1743999049367,-576.98,0.00038356,7]
[357299171,1743999049377,-576.98,0.00038356,7]
[357299172,1743999049387,-576.98,0.00038356,7]
[357299173,1743999049396,-500.0,0.00038356,7]
[357299174,1743999049407,-740.56,0.00038356,7]
[357299175,1743999049419,-576.98,0.00038356,7]
[357299176,1743999049430,-576.98,0.00038356,7]
[357299177,1743999049441,-7581.46,0.00038356,7]
[357299178,1743999049451,-576.98,0.00038356,7]
[357299179,1743999049462,-2322.26,0.00038356,7]
[357299180,1743999049472,-576.98,0.00038356,7]
[357299181,1743999049483,-576.98,0.00038356,7]
[357299182,1743999049493,-576.98,0.00038356,7]
[357299183,1743999049504,-576.98,0.00038356,7]
[357299184,1743999049514,-576.98,0.00038356,7]
[357299185,1743999049524,-577.21230944,0.00038356,7]
[357299186,1743999049535,-500.0,0.00038356,7]
[357299187,1743999049546,-500.0,0.00038356,7]
[357299188,1743999049555,-1678.06,0.00038356,7]
[357299189,1743999049566,-500.0,0.00038356,7]
[357299190,1743999049576,-534.87092604,0.00038356,7]
[357299191,1743999049586,-500.0,0.00038356,7]
[357299192,1743999049596,-549.57268258,0.00038356,7]
[357299193,1743999049606,-500.0,0.00038356,7]
[357299194,1743999049616,-546.3,0.00038356,7]
[357299195,1743999049626,-500.0,0.00038356,7]
[357299196,1743999049636,-2239.86,0.00038356,7]
[357299197,1743999049646,-500.0,0.00038356,7]
[357299198,1743999049655,-500.0,0.00038356,7]
[357299199,1743999049670,-1992.21,0.00038356,7]
[357299200,1743999049680,-500.0,0.00038356,7]
[357299201,1743999049689,-5222.49,0.00038356,7]
[357299202,1743999049699,-500.0,0.00038356,7]
[357299203,1743999049709,-4754.1,0.00038356,7]
[357299204,1743999049719,-2107.47,0.00038356,7]
[357299205,1743999049729,-520.3988958,0.00038356,7]
[357299206,1743999049739,-2901.78,0.00038356,7]
[357299207,1743999049749,-500.0,0.00038356,7]
[357299208,1743999049759,-500.0,0.00038356,7]
[357299209,1743999049770,-500.0,0.00038356,7]
[357299210,1743999049780,-500.0,0.00038356,7]
[357299211,1743999049790,-500.0,0.00038356,7]
[357299212,1743999049800,-558.60480821,0.00038356,7]
[357299213,1743999049810,-1000.0,0.00038356,3]
[357299214,1743999049820,-500.0,0.00038356,7]
[357299215,1743999049829,-525.89,0.00038356,7]
[357299216,1743999049840,-1115.98,0.00038356,7]
[357299217,1743999049850,-1085.62,0.00038356,7]
[357299218,1743999049860,-500.0,0.00038356,7]
[357299219,1743999049870,-1195.53,0.00038356,7]
[357299220,1743999049879,-467.79753653,0.00038356,7]
[357299221,1743999049888,-500.0,0.00038356,7]
[357299222,1743999049898,-500.0,0.00038356,7]
[357299223,1743999049908,-510.01,0.00038356,7]
[357299224,1743999049922,-10765.04,0.00038356,7]
[357299225,1743999049931,-510.01,0.00038356,7]
[357299226,1743999049941,-500.0,0.00038356,7]
[357299227,1743999049951,-510.01,0.00038356,7]
[357299228,1743999049960,-2187.41,0.00038356,7]
[357299229,1743999049970,-510.01,0.00038356,7]
[357299230,1743999049980,-500.0,0.00038356,7]
[357299231,1743999049990,-510.01,0.00038356,7]
[357299232,1743999049999,-510.01,0.00038356,7]
[357299233,1743999050009,-500.0,0.00038356,7]
[357299234,1743999050019,-510.01,0.00038356,7]
[357299235,1743999050033,-510.01,0.00038356,7]
[357299236,1743999050043,-510.01,0.00038356,7]
[357299237,1743999050053,-510.01,0.00038356,7]
[357299238,1743999050063,-510.01,0.00038356,7]
[357299239,1743999050075,-510.01,0.00038356,7]
[357299240,1743999050084,-535.02,0.00038356,7]
[357299241,1743999050094,-510.01,0.00038356,7]
[357299242,1743999050106,-500.0,0.00038356,7]
[357299243,1743999050117,-510.01,0.00038356,7]
[357299244,1743999050127,-510.01,0.00038356,7]
[357299245,1743999050137,-510.01,0.00038356,7]
[357299246,1743999050147,-510.01,0.00038356,7]
[357299247,1743999050157,-510.01,0.00038356,7]
[357299248,1743999050169,-510.01,0.00038356,7]
[357299249,1743999050179,-500.0,0.00038356,7]
[357299250,1743999050188,-510.01,0.00038356,7]
[357299251,1743999050198,-510.01,0.00038356,7]
[357299252,1743999050207,-510.01,0.00038356,7]
[357299253,1743999050217,-712.26,0.00038356,7]
[357299254,1743999050227,-510.01,0.00038356,7]
[357299255,1743999050237,-510.16479669,0.00038356,7]
[357299256,1743999050246,-568.12,0.00038356,7]
[357299257,1743999050256,-500.0,0.00038356,7]
[357299258,1743999050266,-500.0,0.00038356,7]
[357299259,1743999050276,-500.0,0.00038356,7]
[357299260,1743999050286,-1109.5,0.00038356,7]
[357299261,1743999050296,-500.0,0.00038356,7]
[357299262,1743999050306,-6670.03,0.00038356,7]
[357299263,1743999050316,-500.0,0.00038356,7]
[357299264,1743999050325,-675.86,0.00038356,7]
[357299265,1743999050335,-500.0,0.00038356,7]
[357299266,1743999050345,-500.0,0.00038356,7]
[357299267,1743999050355,-500.0,0.00038356,7]
[357299268,1743999050364,-500.0,0.00038356,7]
[357299269,1743999050374,-1071.0,0.00038356,7]
[357299270,1743999050384,-500.0,0.00038356,7]
[357299271,1743999050394,-500.0,0.00038356,7]
[357299272,1743999050403,-568.72,0.00038356,7]
[357299273,1743999050415,-500.0,0.00038356,7]
[357299274,1743999050424,-500.0,0.00038356,7]
[357299275,1743999050434,-524.52,0.00038356,7]
[357299276,1743999050445,-524.52,0.00038356,7]
[357299277,1743999050454,-524.52,0.00038356,7]
[357299278,1743999050464,-524.52,0.00038356,7]
[357299279,1743999050473,-808.46,0.00038356,7]
[357299280,1743999050482,-524.52,0.00038356,7]
[357299281,1743999050492,-500.0,0.00038356,7]
[357299282,1743999050501,-524.52,0.00038356,7]
[357299283,1743999050510,-524.52,0.00038356,7]
[357299284,1743999050520,-524.52,0.00038356,7]
[357299285,1743999050529,-524.52,0.00038356,7]
[357299286,1743999050540,-524.52,0.00038356,7]
[357299287,1743999050549,-524.52,0.00038356,7]
[357299288,1743999050559,-500.0,0.00038356,7]
[357299289,1743999050569,-524.52,0.00038356,7]
[357299290,1743999050579,-524.52,0.00038356,7]
[357299291,1743999050589,-524.52,0.00038356,7]
[357299292,1743999050598,-500.0,0.00038356,7]
[357299293,1743999050608,-524.52,0.00038356,7]
[357299294,1743999050618,-524.52,0.00038356,7]
[357299295,1743999050627,-524.52,0.00038356,7]
[357299296,1743999050637,-524.52,0.00038356,7]
[357299297,1743999050647,-524.52,0.00038356,7]
[357299298,1743999050657,-524.52,0.00038356,7]
[357299299,1743999050670,-524.52,0.00038356,7]
[357299300,1743999050679,-524.52,0.00038356,7]
[357299301,1743999050689,-500.0,0.00038356,7]
[357299302,1743999050703,-524.52,0.00038356,7]
[357299303,1743999050713,-524.52932674,0.00038356,7]
[357299304,1743999050723,-500.0,0.00038356,7]
[357299305,1743999050732,-500.0,0.00038356,7]
[357299306,1743999050742,-500.0,0.00038356,7]
[357299307,1743999050752,-4170.44,0.00038356,7]
[357299308,1743999050762,-500.0,0.00038356,2]
[357299309,1743999050771,-544.1920606,0.00038356,7]
[357299310,1743999050782,-501.0130321,0.00038356,2]
[357299311,1743999050792,-308.7626116,0.00038356,7]
[357299312,1743999050802,-1807.07,0.00038356,7]
[357299313,1743999050811,-500.0,0.00038356,7]
[357299314,1743999050821,-500.0,0.00038356,7]
[357299315,1743999050831,-500.0,0.00038356,7]
[357299316,1743999050840,-500.0,0.00038356,7]
[357299317,1743999050850,-500.0,0.00038356,7]
[357299318,1743999050859,-500.0,0.00038356,7]
[357299319,1743999050869,-500.0,0.00038356,7]
[357299320,1743999050879,-500.0,0.00038356,7]
[357299321,1743999050888,-2267.94,0.00038356,7]
[357299322,1743999050899,-509.41877647,0.00038356,7]
[357299323,1743999050908,-500.0,0.00038356,7]
[357299324,1743999050920,-8180.17,0.00038356,7]
[357299325,1743999050930,-500.0,0.00038356,7]
[357299326,1743999050939,-500.0,0.00038356,7]
[357299327,1743999050949,-500.0,0.00038356,7]
[357299328,1743999050958,-500.0,0.00038356,7]
[357299329,1743999050968,-500.0,0.00038356,7]
[357299330,1743999050977,-500.0,0.00038356,7]
[357299331,1743999050987,-500.0,0.00038356,7]
[357299332,1743999050996,-537.36,0.00038356,7]
[357299333,1743999051006,-500.0,0.00038356,7]
[357299334,1743999051015,-1000.0,0.00038356,90]
[357299335,1743999051028,-500.0,0.00038356,7]
[357299336,1743999051038,-500.0,0.00038356,7]
[357299337,1743999051047,-288.36250587,0.00038356,7]
[357299338,1743999051056,-557.59507408,0.00038356,2]
[357299339,1743999051066,-500.0,0.00038356,7]
[357299340,1743999051076,-500.0,0.00038356,7]
[357299341,1743999051085,-500.0,0.00038356,7]
[357299342,1743999051095,-500.0,0.00038356,7]
[357299343,1743999051105,-500.0,0.00038356,7]
[357299344,1743999051159,-500.0,0.00038356,7]
[357299345,1743999051171,-18560.06,0.00038356,7]
[357299346,1743999051181,-500.0,0.00038356,7]
[357299347,1743999051191,-577.08234402,0.00038356,7]
[357299348,1743999051200,-8705.04,0.00038356,7]
[357299349,1743999051209,-500.0,0.00038356,7]
[357299350,1743999051220,-500.0,0.00038356,7]
[357299351,1743999051229,-1500.0,0.00038356,5]
[357299352,1743999051239,-500.0,0.00038373,5]
[357299353,1743999051249,-502.22612769,0.00038373,5]
[357299354,1743999051259,-500.0,0.00038373,5]
[357299355,1743999051268,-500.0,0.00038373,5]
[357299356,1743999051278,-500.62051794,0.00038373,5]
[357299357,1743999051287,-509.73901221,0.00038373,5]
[357299358,1743999051297,-500.0,0.00038373,5]
[357299359,1743999051306,-500.0,0.00038373,5]
[357299360,1743999051315,-500.0,0.00038373,5]
[357299361,1743999051325,-500.0,0.00038373,5]
[357299362,1743999051335,-500.0,0.00038373,5]
[357299363,1743999051345,-500.0,0.00038373,5]
[357299364,1743999051354,-500.0,0.00038373,5]
[357299365,1743999051363,-500.0,0.00038373,5]
[357299366,1743999051373,-500.0,0.00038373,5]
[357299367,1743999051382,-500.0,0.00038373,5]
[357299368,1743999051392,-501.58900933,0.00038373,5]
[357299369,1743999051402,-501.68135182,0.00038373,5]
[357299370,1743999051412,-500.0,0.00038373,5]
[357299371,1743999051422,-500.0,0.00038373,5]
[357299372,1743999051432,-302.39232454,0.00038373,5]
[357299373,1743999051441,-500.0,0.0003863,7]
[357299374,1743999051450,-500.0,0.0003863,7]
[357299375,1743999051460,-500.0,0.0003863,7]
[357299376,1743999051470,-500.0,0.0003863,7]
[357299377,1743999051479,-500.0,0.0003863,7]
[357299378,1743999051488,-500.0,0.0003863,7]
[357299379,1743999051498,-324.25547983,0.0003863,7]
[357299380,1743999051508,-500.0,0.0003863,7]
[357299381,1743999051517,-500.0,0.0003863,7]
[357299382,1743999051527,-500.0,0.0003863,7]
[357299383,1743999051536,-511.42,0.0003863,7]
[357299384,1743999051546,-500.0,0.0003863,7]
[357299385,1743999051555,-500.0,0.0003863,7]
[357299386,1743999051565,-500.0,0.0003863,7]
[357299387,1743999051574,-509.35,0.0003863,7]
[357299388,1743999051584,-500.0,0.0003863,7]
[357299389,1743999051593,-500.0,0.0003863,7]
[357299390,1743999051602,-540.93,0.0003863,7]
[357299391,1743999051612,-500.0,0.0003863,7]
[357299392,1743999051621,-511.801864,0.0003863,7]
[357299393,1743999051631,-500.0,0.0003863,7]
[357299394,1743999051641,-500.0,0.0003863,7]
[357299395,1743999051650,-500.0,0.0003863,7]
[357299396,1743999051660,-704.76,0.0003863,7]
[357299397,1743999051671,-500.0,0.0003863,7]
[357299398,1743999051680,-500.0,0.0003863,7]
[357299399,1743999051690,-1047.59,0.0003863,7]
[357299400,1743999051701,-1000.0,0.0003863,30]
[357299401,1743999051712,-500.0,0.0003863,7]
[357299402,1743999051721,-500.0,0.0003863,7]
[357299403,1743999051730,-500.0,0.0003863,7]
[357299404,1743999051741,-500.0,0.0003863,7]
[357299405,1743999051751,-500.0,0.0003863,7]
[357299406,1743999051760,-500.0,0.0003863,7]
[357299407,1743999051770,-500.0,0.0003863,7]
[357299408,1743999051780,-500.0,0.0003863,7]
[357299409,1743999051790,-500.0,0.0003863,7]
[357299410,1743999051800,-500.0,0.0003863,7]
[357299411,1743999051810,-500.0,0.0003863,7]
[357299412,1743999051819,-1299.52,0.0003863,7]
[357299413,1743999051828,-500.0,0.0003863,7]
[357299414,1743999051838,-500.0,0.0003863,7]
[357299415,1743999051847,-500.0,0.0003863,7]
[357299416,1743999051857,-500.0,0.0003863,7]
[357299417,1743999051866,-500.0,0.0003863,7]
[357299418,1743999051876,-589.31,0.0003863,7]
[357299419,1743999051885,-501.50476669,0.0003863,2]
[357299420,1743999051895,-225.2777443,0.0003863,7]
[357299421,1743999051904,-1000.0,0.0003863,7]
[357299422,1743999051916,-961.09,0.0003863,7]
[357299423,1743999051926,-500.0,0.0003863,7]
[357299424,1743999051935,-500.0,0.0003863,7]
[357299425,1743999051945,-766.96,0.0003863,7]
[357299426,1743999051955,-500.0,0.0003863,7]
[357299427,1743999051964,-500.0,0.0003863,7]
[357299428,1743999051973,-500.0,0.0003863,7]
[357299429,1743999051983,-500.0,0.0003863,7]
[357299430,1743999051993,-500.0,0.0003863,7]
[357299431,1743999052003,-328.95720407,0.0003863,30]
[357299432,1743999052013,-500.0,0.0003863,7]
[357299433,1743999052024,-500.0,0.0003863,7]
[357299434,1743999052034,-500.0,0.0003863,7]
[357299435,1743999052044,-500.0,0.0003863,7]
[357299436,1743999052053,-500.0,0.0003863,7]
[357299437,1743999052063,-500.0,0.0003863,7]
[357299438,1743999052074,-500.0,0.0003863,7]
[357299439,1743999052084,-500.0,0.0003863,7]
[357299440,1743999052094,-644.19839928,0.0003863,7]
[357299441,1743999052105,-1006.09,0.0003863,7]
[357299442,1743999052115,-500.0,0.0003863,7]
[357299443,1743999052124,-500.0,0.0003863,7]
[357299444,1743999052134,-500.0,0.0003863,7]
[357299445,1743999052143,-500.0,0.0003863,7]
[357299446,1743999052152,-500.0,0.0003863,7]
[357299447,1743999052162,-505.78,0.0003863,7]
[357299448,1743999052177,-1000.0,0.0003863,30]
[357299449,1743999052186,-500.0,0.0003863,7]
[357299450,1743999052197,-500.0,0.0003863,7]
[357299451,1743999052206,-694.82,0.0003863,7]
[357299452,1743999052216,-500.0,0.0003863,7]
[357299453,1743999052226,-500.0,0.0003863,7]
[357299454,1743999052235,-1406.25,0.0003863,7]
[357299455,1743999052245,-500.0,0.0003863,7]
[357299456,1743999052254,-1333.32,0.0003863,7]
[357299457,1743999052264,-500.0,0.0003863,7]
[357299458,1743999052274,-595.64,0.0003863,7]
[357299459,1743999052284,-500.0,0.0003863,7]
[357299460,1743999052294,-500.0,0.0003863,7]
[357299461,1743999052304,-500.0,0.0003863,7]
[357299462,1743999052313,-500.0,0.0003863,7]
[357299463,1743999052330,-500.0,0.0003863,7]
[357299464,1743999052345,-500.0,0.0003863,7]
[357299465,1743999052355,-534.91101437,0.0003863,7]
[357299466,1743999052364,-500.0,0.0003863,7]
[357299467,1743999052374,-500.0,0.0003863,7]
[357299468,1743999052383,-500.0,0.0003863,7]
[357299469,1743999052394,-501.28,0.0003863,7]
[357299470,1743999052403,-545.46,0.0003863,7]
[357299471,1743999052413,-265.65774636,0.0003863,7]
[357299472,1743999052424,-500.0,0.0003863,7]
[357299473,1743999052434,-500.0,0.0003863,7]
[357299474,1743999052443,-1298.7,0.0003863,7]
[357299475,1743999052453,-328.29207539,0.0003863,7]
[357299476,1743999052463,-500.0,0.0003863,7]
[357299477,1743999052473,-500.0,0.0003863,7]
[357299478,1743999052483,-500.0,0.0003863,7]
[357299479,1743999052492,-500.0,0.0003863,3]
[357299480,1743999052502,-504.48656084,0.0003863,7]
[357299481,1743999052511,-500.0,0.0003863,7]
[357299483,1743999052522,-500.0,0.0003863,7]
[357299484,1743999052532,-579.21,0.0003863,7]
[357299485,1743999052541,-333.99251808,0.0003863,7]
[357299486,1743999052551,-816.37,0.0003863,7]
[357299487,1743999052560,-500.0,0.0003863,7]
[357299488,1743999052569,-500.0,0.0003863,7]
[357299489,1743999052579,-500.0,0.0003863,7]
[357299490,1743999052588,-500.0,0.0003863,7]
[357299491,1743999052598,-500.0,0.0003863,7]
[357299492,1743999052607,-500.0,0.0003863,7]
[357299493,1743999052617,-500.0,0.0003863,7]
[357299494,1743999052626,-528.93,0.0003863,7]
[357299495,1743999052636,-500.0,0.0003863,7]
[357299496,1743999052646,-504.09,0.0003863,7]
[357299497,1743999052655,-539.99,0.0003863,7]
[357299498,1743999052666,-500.0,0.0003863,7]
[357299499,1743999052675,-500.0,0.0003863,7]
[357299500,1743999052685,-622.51,0.0003863,7]
[357299501,1743999052695,-500.0,0.0003863,7]
[357299502,1743999052705,-500.0,0.0003863,7]
[357299503,1743999052715,-500.0,0.0003863,7]
[357299504,1743999052724,-1374.07,0.0003863,7]
[357299505,1743999052734,-500.0,0.0003863,7]
[357299506,1743999052743,-500.0,0.0003863,7]
[357299507,1743999052753,-500.0,0.0003863,7]
[357299508,1743999052762,-236.19068407,0.0003863,7]
[357299509,1743999052772,-500.0,0.0003863,7]
[357299510,1743999052781,-500.0,0.0003863,7]
[357299511,1743999052791,-757.16,0.0003863,7]
[357299512,1743999052800,-500.0,0.0003863,7]
[357299513,1743999052810,-500.0,0.0003863,7]
[357299514,1743999052819,-500.0,0.0003863,7]
[357299515,1743999052829,-500.0,0.0003863,7]
[357299516,1743999052839,-500.0,0.0003863,7]
[357299517,1743999052849,-871.18,0.0003863,7]
[357299518,1743999052859,-500.0,0.0003863,7]
[357299519,1743999052869,-500.0,0.0003863,7]
[357299520,1743999052879,-500.0,0.0003863,7]
[357299521,1743999052889,-500.0,0.0003863,7]
[357299522,1743999052899,-200.0,0.0003863,7]
[357299523,1743999052909,-500.0,0.0003863,7]
[357299524,1743999052923,-562.53,0.0003863,7]
[357299525,1743999052934,-500.0,0.0003863,7]
[357299526,1743999052948,-500.0,0.0003863,7]
[357299527,1743999052958,-622.82,0.0003863,7]
[357299528,1743999052968,-500.0,0.0003863,7]
[357299529,1743999052978,-500.0,0.0003863,7]
[357299530,1743999052988,-500.0,0.0003863,7]
[357299531,1743999052998,-500.0,0.0003863,7]
[357299532,1743999053010,-500.0,0.0003863,7]
[357299533,1743999053021,-500.0,0.0003863,7]
[357299534,1743999053030,-1670.91,0.0003863,7]
[357299535,1743999053040,-500.0,0.0003863,7]
[357299536,1743999053050,-1175.6,0.0003863,7]
[357299537,1743999053060,-500.0,0.0003863,7]
[357299538,1743999053070,-500.0,0.0003863,7]
[357299539,1743999053079,-500.0,0.0003863,7]
[357299540,1743999053090,-501.33302757,0.0003863,7]
[357299541,1743999053102,-501.97515211,0.0003863,7]
[357299542,1743999053115,-500.0,0.0003863,7]
[357299543,1743999053125,-503.97,0.0003863,7]
[357299544,1743999053135,-647.51081586,0.0003863,120]
[357299545,1743999053146,-938.15,0.0003863,7]
[357299546,1743999053156,-500.0,0.0003863,7]
[357299547,1743999053166,-500.0,0.0003863,7]
[357299548,1743999053179,-527.03443778,0.0003863,7]
[357299549,1743999053188,-500.0,0.0003863,7]
[357299550,1743999053199,-1047.08,0.0003863,7]
[357299551,1743999053210,-515.78,0.0003863,7]
[357299552,1743999053220,-639.59,0.0003863,7]
[357299553,1743999053230,-368.16067863,0.0003863,7]
[357299554,1743999053242,-500.0,0.0003863,7]
[357299555,1743999053252,-500.0,0.0003863,7]
[357299556,1743999053263,-500.0,0.0003863,7]
[357299557,1743999053273,-595.91,0.0003863,7]
[357299558,1743999053284,-500.0,0.0003863,7]
[357299559,1743999053294,-500.0,0.0003863,7]
[357299560,1743999053305,-500.0,0.0003863,7]
[357299561,1743999053316,-500.0,0.0003863,7]
[357299562,1743999053327,-500.0,0.0003863,7]
[357299563,1743999053337,-500.0,0.0003863,7]
[357299564,1743999053348,-500.0,0.0003863,7]
[357299565,1743999053358,-500.0,0.0003863,7]
[357299566,1743999053369,-500.0,0.0003863,7]
[357299567,1743999053379,-500.0,0.0003863,7]
[357299568,1743999053390,-500.0,0.0003863,7]
[357299569,1743999053402,-500.0,0.0003863,7]
[357299570,1743999053413,-226.31100469,0.0003863,7]
[357299571,1743999053427,-500.0,0.0003863,7]
[357299572,1743999053438,-500.0,0.0003863,7]
[357299573,1743999053448,-500.0,0.0003863,7]
[357299574,1743999053459,-500.0,0.0003863,7]
[357299575,1743999053469,-500.0,0.0003863,7]
[357299576,1743999053479,-594.33,0.0003863,7]
[357299577,1743999053489,-2427.28,0.0003863,7]
[357299578,1743999053499,-500.0,0.0003863,7]
[357299579,1743999053510,-500.0,0.0003863,7]
[357299580,1743999053521,-523.68,0.0003863,7]
[357299581,1743999053531,-702.99,0.0003863,7]
[357299582,1743999053541,-534.45217666,0.0003863,7]
[357299583,1743999053552,-500.0,0.0003863,7]
[357299584,1743999053562,-500.0,0.0003863,7]